bitfinex/quotes_ETHUSD_20240722
["timestamp","ask_amount","ask_price","bid_price","bid_amount"]
[1721632141971,2.87844,3474.1,3473.5,2.87893]
[1721632142512,2.87828,3474.3,3473.7,2.87877]
[1721632142663,2.87828,3474.3,3473.6,2.87883]
[1721632143184,5.34122,3474.5,3473.7,2.87877]
[1721632143405,2.87819,3474.4,3473.7,2.87877]
[1721632143565,2.87828,3474.3,3473.7,2.87877]
[1721632144394,2.4631,3474.5,3473.7,2.87877]
[1721632144599,2.87825,3474.4,3473.6,2.87885]
[1721632144962,2.87831,3474.3,3473.6,3.545143]
[1721632145768,2.8784,3474.2,3473.6,0.666293]
[1721632146162,2.8784,3474.2,3473.5,2.87892]
[1721632146411,2.8785,3474.1,3473.4,0.355]
[1721632146604,0.05751903,3474.2,3473.4,3.355]
[1721632146766,2.87852,3474.0,3473.4,3.355]
[1721632147304,2.8785,3474.1,3473.4,3.355]
[1721632147503,2.93587903,3474.2,3473.4,3.355]
[1721632147504,2.87859,3474.0,3473.4,3.355]
[1721632147681,0.05751903,3474.2,3473.1,3.0]
[1721632147879,7.48,3474.7,3474.6,2.87802]
[1721632148078,2.87721,3475.6,3474.7,2.87789]
[1721632148296,14.7573,3475.9,3474.6,2.4496]
[1721632148297,5.22425,3475.9,3474.6,2.4496]
[1721632148498,10.35672,3476.2,3475.2,2.87752]
[1721632149006,10.35672,3476.2,3475.3,2.87742]
[1721632149007,2.87687,3476.0,3475.3,2.87742]
[1721632150065,3.47203239,3476.3,3475.4,0.05754599]
[1721632150267,2.87663,3476.3,3474.8,0.05754002]
[1721632150498,2.87663,3476.3,3474.9,0.55]
[1721632150663,2.87663,3476.3,3475.6,2.87718]
[1721632150865,5.23479,3476.7,3475.1,2.46284016]
[1721632151095,0.59540239,3477.0,3476.3,2.87661]
[1721632151410,2.87604,3477.0,3476.2,2.87666]
[1721632151630,2.3838,3477.1,3476.2,2.87666]
[1721632151825,2.87613,3476.9,3476.2,2.87666]
[1721632151970,0.58550824,3477.0,3476.0,2.87682]
[1721632151971,2.87624,3476.8,3476.0,2.87682]
[1721632152171,2.87624,3476.8,3476.1,2.87676]
[1721632152381,2.87624,3476.8,3475.9,5.17652]
[1721632152570,2.87624,3476.8,3475.8,2.87696]
[1721632152571,2.87647,3476.5,3475.8,2.87696]
[1721632152783,2.93382903,3476.7,3475.9,5.87694]
[1721632152981,2.87619,3476.9,3476.1,2.87676]
[1721632153399,5.25976,3477.1,3476.3,2.87661]
[1721632153871,2.3838,3477.1,3476.1,2.87676]
[1721632154605,2.87643,3476.6,3475.9,3.0]
[1721632154767,2.87621,3476.8,3475.9,3.0]
[1721632154971,2.87621,3476.8,3476.0,2.87685]
[1721632155392,2.87646,3476.5,3475.8,2.87702]
[1721632155591,2.87646,3476.5,3475.5,5.14332]
[1721632155805,2.87646,3476.5,3475.6,3.55]
[1721632156777,9.8638,3477.1,3475.6,3.55]
[1721632156778,2.93409903,3476.4,3475.6,5.87713]
[1721632156977,2.93409903,3476.4,3475.3,2.87744]
[1721632156978,2.87658,3476.4,3475.3,2.87744]
[1721632157208,2.87673,3476.2,3475.4,2.87735]
[1721632157390,0.287658,3476.3,3475.1,5.3871]
[1721632157593,2.87658,3476.4,3475.7,2.87709]
[1721632158524,2.87677,3476.2,3475.5,2.87727]
[1721632158934,2.87677,3476.2,3475.1,5.3871]
[1721632158935,2.87687,3476.0,3475.1,3.0]
[1721632159138,2.87695,3475.9,3475.1,2.8776]
[1721632159291,2.87695,3475.9,3475.2,3.0]
[1721632159493,2.87695,3475.9,3474.8,3.0]
[1721632159494,2.87705,3475.8,3474.8,3.0]
[1721632159692,0.575374,3475.9,3474.6,2.878]
[1721632159693,0.05751903,3475.7,3474.6,2.878]
[1721632160192,0.05751903,3475.7,3474.5,2.8781]
[1721632160193,5.25476,3475.4,3474.5,2.8781]
[1721632160393,2.87751,3475.3,3474.5,2.8781]
[1721632160700,2.87751,3475.3,3474.2,5.27575]
[1721632160701,2.87761,3475.1,3474.4,2.87817]
[1721632162534,2.87748,3475.3,3474.5,2.87804]
[1721632163112,2.87754,3475.2,3474.5,2.87804]
[1721632165829,2.87761,3475.1,3474.5,2.87804]
[1721632166029,2.87778,3474.9,3474.1,5.87843]
[1721632166343,2.87778,3474.9,3474.2,0.55]
[1721632166716,2.87778,3474.9,3474.2,3.42835]
[1721632166913,0.05751903,3474.8,3473.7,2.87876]
[1721632167128,2.3774,3475.4,3473.4,2.2777]
[1721632167129,2.3615,3474.6,3473.4,2.2777]
[1721632167328,2.87829,3474.3,3473.4,5.15671]
[1721632167926,5.23952,3474.6,3473.7,2.87874]
[1721632167927,2.87815,3474.5,3473.7,2.87874]
[1721632168128,2.3615,3474.6,3473.9,2.87854]
[1721632168327,2.885437,3474.6,3473.9,2.87854]
[1721632169359,2.87768,3475.1,3474.1,2.87841]
[1721632169515,2.457,3475.1,3474.0,2.87851]
[1721632169719,2.87784,3474.9,3474.1,2.87839]
[1721632169915,2.8777,3475.0,3473.8,2.87868]
[1721632170118,0.53347,3474.9,3474.2,2.87829]
[1721632170557,0.53347,3474.9,3474.0,2.87852]
[1721632170558,0.53347,3474.9,3474.3,2.87824]
[1721632170720,0.53347,3474.9,3474.0,2.87851]
[1721632171415,0.53347,3474.9,3474.2,2.8783]
[1721632171922,0.05751903,3474.8,3474.0,2.87851]
[1721632172151,2.87794,3474.7,3474.0,2.87851]
[1721632172450,0.34904794,3474.8,3474.1,2.87843]
[1721632172830,3.22696794,3474.8,3474.1,2.87843]
[1721632173033,2.457,3475.1,3474.4,2.87817]
[1721632173231,2.457,3475.1,3474.2,2.87833]
[1721632173414,2.457,3475.1,3474.0,2.87851]
[1721632173618,2.87793,3474.8,3474.1,2.87843]
[1721632175279,2.87769,3475.0,3474.2,2.87832]
[1721632175843,2.457,3475.1,3474.2,2.87832]
[1721632175844,2.87778,3474.9,3474.2,2.87832]
[1721632176264,2.87788,3474.8,3474.2,2.87832]
[1721632176477,2.87788,3474.8,3474.0,2.87848]
[1721632177061,2.87778,3474.9,3474.1,2.87842]
[1721632177270,2.457,3475.1,3474.3,2.8782]
[1721632177491,2.457,3475.1,3474.6,2.878]
[1721632177492,0.533455,3475.0,3474.6,2.878]
[1721632177651,3.0,3475.6,3474.7,2.87793]
[1721632177652,2.87735,3475.5,3474.7,2.87793]
[1721632177985,2.87746,3475.3,3474.7,2.87793]
[1721632178287,2.87753,3475.2,3474.5,2.87809]
[1721632179664,2.87761,3475.1,3474.5,2.87809]
[1721632179858,2.87769,3475.0,3474.3,2.87827]
[1721632180063,0.59540239,3475.7,3473.8,0.287868]
[1721632180064,0.30579903,3475.5,3474.4,3.0]
[1721632180263,2.87788,3474.8,3474.2,5.87835]
[1721632181194,5.25413,3475.0,3474.2,3.0]
[1721632181399,2.3764,3475.0,3474.4,2.87813]
[1721632183106,5.25412,3475.0,3474.4,2.87813]
[1721632183585,2.3764,3475.0,3474.5,2.87807]
[1721632185698,2.3764,3475.0,3474.3,2.87827]
[1721632185904,2.3764,3475.0,3474.4,3.0]
[1721632186209,5.25409,3475.0,3474.4,5.87818]
[1721632187227,5.25409,3475.0,3474.4,3.0]
[1721632187546,5.25409,3475.0,3472.9,2.87937]
[1721632187547,2.87883,3473.7,3472.9,2.87937]
[1721632187702,2.87883,3473.7,3472.6,2.4225]
[1721632187703,2.87894,3473.5,3472.6,2.4225]
[1721632187903,2.8791,3473.3,3472.5,2.87973]
[1721632188106,0.05751903,3473.4,3472.4,2.87984]
[1721632188107,2.93659903,3473.4,3472.6,3.455637]
[1721632188339,2.87916,3473.3,3472.6,3.455637]
[1721632188509,2.87923,3473.2,3472.6,0.575957]
[1721632188710,2.87908,3473.4,3472.6,0.575957]
[1721632188711,0.05751903,3473.3,3472.6,2.87968]
[1721632188919,5.20086,3473.6,3472.2,2.4225]
[1721632189116,2.87895,3473.5,3472.5,2.87976]
[1721632189314,2.87895,3473.5,3472.8,2.87951]
[1721632189531,5.20087,3473.6,3472.9,2.87943]
[1721632189963,12.70276,3474.2,3472.9,0.575911]
[1721632190102,2.87859,3474.0,3473.2,2.87912]
[1721632190302,12.70276,3474.2,3472.6,2.87963]
[1721632190303,2.87845,3474.1,3473.3,5.87902]
[1721632190750,9.8244,3474.2,3473.5,2.87893]
[1721632190961,12.70278,3474.2,3473.5,2.87893]
[1721632191742,12.70278,3474.2,3473.6,2.87885]
[1721632191955,2.87852,3474.0,3473.3,5.8791]
[1721632192543,8.1012,3474.2,3473.4,2.87901]
[1721632193066,2.87845,3474.1,3473.4,2.87901]
[1721632194074,2.87858,3474.0,3473.3,3.0]
[1721632194631,5.22276,3474.2,3473.4,2.87901]
[1721632194837,2.87844,3474.1,3473.4,2.87901]
[1721632195379,2.87854,3474.0,3473.4,2.87901]
[1721632195584,5.75712,3474.0,3473.3,3.0]
[1721632195751,2.87854,3474.0,3473.3,3.0]
[1721632196246,2.3444,3474.2,3473.6,2.87885]
[1721632196451,5.22276,3474.2,3473.6,2.87885]
[1721632196637,2.3444,3474.2,3473.4,2.87902]
[1721632196839,2.3444,3474.2,3473.5,2.87888]
[1721632197084,2.3444,3474.2,3473.8,2.87868]
[1721632197435,2.3444,3474.2,3473.6,2.8788]
[1721632197951,2.3444,3474.2,3473.7,2.87876]
[1721632198161,2.8782,3474.4,3473.5,2.87893]
[1721632198363,2.87852,3474.0,3473.3,5.87903]
[1721632198741,2.87861,3473.9,3473.3,5.87903]
[1721632199250,2.87848,3474.1,3473.4,2.87899]
[1721632200465,2.87848,3474.1,3473.3,3.0]
[1721632200466,2.87836,3474.2,3473.3,3.0]
[1721632200679,2.87836,3474.2,3473.5,2.87891]
[1721632200859,3.454017,3474.2,3473.5,2.87891]
[1721632201952,2.3591,3474.6,3473.8,2.87861]
[1721632202152,2.87825,3474.4,3473.7,2.87877]
[1721632202349,2.87811,3474.5,3473.8,2.87868]
[1721632202866,2.87811,3474.5,3473.7,2.87877]
[1721632203195,2.87811,3474.5,3473.8,5.87868]
[1721632203351,2.87811,3474.5,3473.9,2.87858]
[1721632203550,2.3591,3474.6,3473.9,2.87858]
[1721632203857,5.23714,3474.6,3473.9,2.87858]
[1721632204461,2.87811,3474.5,3473.9,2.87858]
[1721632204781,2.87811,3474.5,3473.8,3.0]
[1721632205162,2.87823,3474.4,3473.8,3.0]
[1721632205390,2.95450239,3474.6,3473.8,5.87868]
[1721632205554,2.95190844,3474.5,3473.8,5.87868]
[1721632205889,2.87816,3474.5,3473.8,5.87868]
[1721632206687,2.95450239,3474.6,3473.8,3.0]
[1721632206889,2.95450239,3474.6,3473.5,2.2929]
[1721632206890,2.87837,3474.2,3473.5,5.87893]
[1721632207247,2.87859,3474.0,3473.1,5.23995]
[1721632207511,2.87877,3473.8,3473.1,2.87925]
[1721632207690,2.32311903,3473.9,3472.7,2.3042]
[1721632207691,2.87878,3473.7,3472.7,2.3042]
[1721632207851,2.87887,3473.6,3472.7,2.3042]
[1721632208052,2.87887,3473.6,3472.9,2.87942]
[1721632208268,2.87887,3473.6,3472.7,5.18379]
[1721632208269,2.87887,3473.6,3473.0,2.87934]
[1721632208471,2.87887,3473.6,3472.7,5.18379]
[1721632208760,2.87887,3473.6,3472.9,2.87937]
[1721632209155,2.8787,3473.8,3472.7,2.822579]
[1721632209355,2.86100239,3473.9,3473.2,2.87916]
[1721632209356,5.14421,3473.9,3473.2,2.87916]
[1721632209790,2.87854,3474.0,3473.0,2.87931]
[1721632209990,2.87854,3474.0,3473.1,3.0]
[1721632210212,2.87854,3474.0,3473.2,2.87911]
[1721632210501,0.05751903,3474.1,3473.0,2.8793]
[1721632210661,2.87878,3473.7,3473.1,3.0]
[1721632210861,2.87878,3473.7,3472.8,6.42949]
[1721632211401,2.87878,3473.7,3473.0,2.87928]
[1721632211582,2.87878,3473.7,3473.1,3.0]
[1721632211790,3.02078,3473.7,3473.1,3.0]
[1721632212088,3.02078,3473.7,3473.1,5.87927]
[1721632212716,0.142,3473.7,3473.1,3.0]
[1721632212997,0.142,3473.7,3473.2,2.87917]
[1721632213591,0.142,3473.7,3473.0,2.87928]
[1721632213592,0.142,3473.7,3473.1,2.87924]
[1721632213898,0.142,3473.7,3473.2,3.0]
[1721632214462,0.142,3473.7,3473.3,2.87907]
[1721632215799,0.142,3473.7,3473.1,5.87922]
[1721632216803,3.02078,3473.7,3473.1,3.0]
[1721632216955,3.02078,3473.7,3473.0,5.87931]
[1721632217768,3.02078,3473.7,3473.1,2.87926]
[1721632217966,3.02078,3473.7,3473.2,3.0]
[1721632218173,2.87902,3473.4,3472.7,2.87956]
[1721632218393,2.87918,3473.3,3472.8,3.0]
[1721632218609,2.87918,3473.3,3472.7,3.0]
[1721632220379,2.87918,3473.3,3472.7,5.8796]
[1721632220779,2.87902,3473.4,3472.8,2.87948]
[1721632220980,2.87902,3473.4,3472.9,3.0]
[1721632221208,5.19359,3473.6,3472.9,5.87942]
[1721632221393,2.3147,3473.6,3473.1,2.87926]
[1721632221711,2.3147,3473.6,3472.9,5.87942]
[1721632221712,5.19357,3473.6,3472.9,5.87942]
[1721632223181,2.3147,3473.6,3473.0,2.87935]
[1721632223497,2.3147,3473.6,3473.1,2.87927]
[1721632223697,5.19356,3473.6,3472.9,5.87938]
[1721632224101,2.3147,3473.6,3472.9,3.0]
[1721632224295,2.3147,3473.6,3473.1,2.87926]
[1721632224691,0.142,3473.7,3473.1,0.93346036]
[1721632224887,0.142,3473.7,3473.6,2.87885]
[1721632226220,0.142,3473.7,3473.6,5.7577]
[1721632226429,0.142,3473.7,3473.6,8.7577]
[1721632227700,0.142,3473.7,3473.6,5.87885]
[1721632228793,0.142,3473.7,3473.6,3.0]
[1721632228993,0.142,3473.7,3473.5,5.87887]
[1721632229291,5.41318,3473.7,3473.1,2.87925]
[1721632229493,5.41318,3473.7,3473.2,3.0]
[1721632229724,5.954498,3473.7,3473.2,3.0]
[1721632229929,5.954498,3473.7,3473.0,3.0]
[1721632230138,3.075718,3473.7,3473.1,2.87926]
[1721632230337,2.5344,3473.7,3473.2,3.0]
[1721632230635,2.5344,3473.7,3473.0,5.87935]
[1721632231898,2.5344,3473.7,3473.1,2.87926]
[1721632232103,2.5344,3473.7,3473.2,3.0]
[1721632232503,5.41319,3473.7,3473.2,3.0]
[1721632232711,2.87894,3473.5,3473.2,3.0]
[1721632232909,2.87894,3473.5,3472.9,3.0]
[1721632233206,2.87911,3473.3,3472.4,2.87983]
[1721632233602,0.65292142,3473.4,3472.5,2.87976]
[1721632233806,0.65292142,3473.4,3472.8,2.87951]
[1721632233807,0.0500492,3473.3,3472.8,2.87951]
[1721632234729,2.9291492,3473.3,3472.6,2.87964]
[1721632235025,0.43751154,3473.2,3472.4,2.87982]
[1721632235224,0.43751154,3473.2,3472.1,2.88008]
[1721632235225,2.2979,3473.1,3472.5,2.87974]
[1721632235405,2.2979,3473.1,3472.6,3.0]
[1721632235799,5.17717,3473.1,3472.6,3.0]
[1721632236006,5.17717,3473.1,3472.4,5.87984]
[1721632236609,2.87936,3473.0,3472.4,3.0]
[1721632236833,2.87936,3473.0,3472.3,5.87992]
[1721632237631,2.2979,3473.1,3472.5,2.87971]
[1721632237835,2.2979,3473.1,3472.6,3.0]
[1721632239160,2.87937,3473.0,3472.6,3.0]
[1721632239358,2.87937,3473.0,3472.3,2.87992]
[1721632239359,2.87937,3473.0,3472.4,3.0]
[1721632241020,2.87951,3472.9,3472.4,3.0]
[1721632241268,0.28933024,3473.0,3472.2,2.88]
[1721632241492,2.89330239,3473.1,3471.6,2.2704]
[1721632241493,5.77264239,3473.1,3472.3,5.87987]
[1721632241763,0.43725854,3473.0,3472.5,2.87976]
[1721632241967,2.2979,3473.1,3472.5,2.87976]
[1721632242324,2.2979,3473.1,3472.6,2.87967]
[1721632242531,3.09230239,3473.5,3473.2,2.87916]
[1721632242731,3.09230239,3473.5,3472.7,3.05759018]
[1721632242732,0.142,3473.7,3472.7,3.0]
[1721632242961,0.142,3473.7,3473.1,2.87923]
[1721632243175,0.142,3473.7,3473.4,2.87901]
[1721632244169,0.142,3473.7,3473.2,5.87918]
[1721632244570,0.142,3473.7,3473.3,2.87909]
[1721632244771,0.142,3473.7,3473.2,3.0]
[1721632244976,0.142,3473.7,3473.2,2.87918]
[1721632245193,0.142,3473.7,3473.3,3.0]
[1721632245748,0.142,3473.7,3473.3,5.8791]
[1721632246160,0.142,3473.7,3473.3,3.0]
[1721632246359,0.142,3473.7,3473.2,2.87912]
[1721632246582,0.142,3473.7,3473.3,3.0]
[1721632247270,0.142,3473.7,3473.0,2.8793]
[1721632247271,3.02077,3473.7,3473.1,5.87924]
[1721632247456,3.02077,3473.7,3473.1,3.0]
[1721632247656,3.02077,3473.7,3472.9,3.0]
[1721632247657,0.142,3473.7,3472.9,3.0]
[1721632247878,3.02084,3473.7,3472.9,6.52674263]
[1721632248080,3.02084,3473.7,3473.0,2.87934]
[1721632248284,0.142,3473.7,3473.1,5.87926]
[1721632248481,0.142,3473.7,3473.2,3.0]
[1721632248987,0.142,3473.7,3473.2,3.05758116]
[1721632249189,0.142,3473.7,3473.5,2.87892]
[1721632250168,0.142,3473.7,3473.3,3.18481812]
[1721632250365,0.142,3473.7,3473.4,3.0]
[1721632252394,0.142,3473.7,3473.1,3.0]
[1721632252969,0.142,3473.7,3473.2,2.87918]
[1721632253172,0.142,3473.7,3473.3,3.0]
[1721632253907,0.142,3473.7,3473.3,5.87908]
[1721632254060,0.142,3473.7,3473.5,2.8789]
[1721632255577,0.13586291,3473.7,3473.3,5.86905]
[1721632258166,0.13586291,3473.7,3473.4,2.87901]
[1721632258473,2.4313,3473.9,3473.5,2.87893]
[1721632259906,2.4313,3473.9,3473.3,5.86904]
[1721632260233,2.4313,3473.9,3473.4,2.879]
[1721632260722,2.4313,3473.9,3473.3,5.8691]
[1721632260938,0.59540239,3474.1,3473.5,2.87886]
[1721632261233,2.424,3474.3,3473.5,2.87886]
[1721632261234,3.01940239,3474.3,3473.8,2.87869]
[1721632261496,2.424,3474.3,3473.8,2.87869]
[1721632262144,1.0175311,3474.2,3473.6,2.87885]
[1721632262318,0.05003608,3474.1,3473.7,2.87876]
[1721632262514,0.59540239,3474.2,3473.7,2.87876]
[1721632262728,1.15555425,3474.2,3473.7,2.87876]
[1721632263038,0.138,3474.2,3473.7,2.87876]
[1721632265161,0.138,3474.2,3473.9,2.87859]
[1721632265456,0.138,3474.2,3473.9,2.87856]
[1721632265813,0.138,3474.2,3474.0,2.87852]
[1721632267721,0.138,3474.2,3473.7,3.454518]
[1721632267722,0.138,3474.2,3473.8,2.87863]
[1721632267927,0.138,3474.2,3473.9,3.0]
[1721632268146,0.138,3474.2,3473.8,3.0]
[1721632268346,0.138,3474.2,3473.9,2.87854]
[1721632269146,0.138,3474.2,3473.8,3.0]
[1721632269379,0.138,3474.2,3473.8,2.87862]
[1721632269586,0.138,3474.2,3473.9,3.0]
[1721632270074,0.138,3474.2,3473.8,2.87862]
[1721632270232,0.138,3474.2,3473.9,3.0]
[1721632271373,0.138,3474.2,3473.8,3.0]
[1721632272039,0.138,3474.2,3473.3,3.46599]
[1721632272040,0.138,3474.2,3473.6,5.87885]
[1721632272241,0.138,3474.2,3473.7,2.87875]
[1721632272445,0.138,3474.2,3473.8,3.0]
[1721632272952,0.138,3474.2,3473.8,5.87867]
[1721632273675,0.138,3474.2,3473.8,3.0]
[1721632273830,0.138,3474.2,3473.7,3.0]
[1721632274842,0.138,3474.2,3473.7,5.87876]
[1721632276287,0.138,3474.2,3473.8,2.87867]
[1721632276579,0.138,3474.2,3473.7,3.875778]
[1721632276580,0.138,3474.2,3473.9,5.87858]
[1721632277485,0.138,3474.2,3473.9,3.0]
[1721632277776,0.138,3474.2,3473.8,3.0]
[1721632278154,0.138,3474.2,3473.6,5.87885]
[1721632278490,0.138,3474.2,3473.7,2.87877]
[1721632278780,0.138,3474.2,3473.8,3.0]
[1721632278994,0.138,3474.2,3473.6,5.8788]
[1721632279456,0.138,3474.2,3473.6,3.0]
[1721632279656,0.138,3474.2,3473.6,2.8788]
[1721632279882,0.138,3474.2,3473.7,3.0]
[1721632280685,0.138,3474.2,3473.7,5.87876]
[1721632280887,0.138,3474.2,3473.8,2.87868]
[1721632281108,0.138,3474.2,3474.1,2.87844]
[1721632281264,0.138,3474.2,3474.1,5.75688]
[1721632284617,0.138,3474.2,3474.1,6.30688]
[1721632284909,0.138,3474.2,3474.1,9.30688]
[1721632285072,0.138,3474.2,3474.1,10.525424]
[1721632285993,0.138,3474.2,3474.1,7.096984]
[1721632286201,0.138,3474.2,3474.1,5.87844]
[1721632287070,0.138,3474.2,3474.1,3.0]
[1721632287298,0.138,3474.2,3473.7,0.875769]
[1721632287299,0.138,3474.2,3474.0,5.87852]
[1721632287660,0.138,3474.2,3474.0,3.0]
[1721632287866,0.138,3474.2,3473.8,2.87867]
[1721632287867,0.138,3474.2,3473.9,3.0]
[1721632288062,0.138,3474.2,3474.1,2.87844]
[1721632288274,0.138,3474.2,3474.1,5.87844]
[1721632290991,0.138,3474.2,3474.1,3.0]
[1721632291239,0.138,3474.2,3474.0,3.0]
[1721632291540,0.1225,3474.2,3474.0,3.0]
[1721632291818,0.1225,3474.2,3474.0,2.87851]
[1721632292123,0.1225,3474.2,3474.1,3.0]
[1721632292623,2.87811,3474.5,3474.0,0.33644975]
[1721632292821,2.87811,3474.5,3473.9,5.87859]
[1721632293328,2.87794,3474.7,3474.0,2.8785]
[1721632293625,2.87794,3474.7,3474.1,3.0]
[1721632294122,2.87803,3474.6,3474.1,3.0]
[1721632294500,2.4858,3474.8,3474.1,3.0]
[1721632294707,2.87796,3474.7,3474.1,5.87843]
[1721632294913,2.4858,3474.8,3474.1,3.875711]
[1721632295112,2.4858,3474.8,3473.5,2.87888]
[1721632295113,2.4858,3474.8,3474.2,2.87835]
[1721632295282,2.4858,3474.8,3473.6,3.0]
[1721632295283,2.4858,3474.8,3474.3,2.87826]
[1721632295488,3.02990239,3475.1,3474.6,2.87799]
[1721632295716,3.02990239,3475.1,3473.9,2.4538]
[1721632295717,3.02990239,3475.1,3474.5,2.8781]
[1721632295911,2.4345,3475.1,3474.5,2.8781]
[1721632296088,5.31211,3475.1,3474.5,2.8781]
[1721632296289,2.87771,3475.0,3474.3,2.87827]
[1721632296488,2.87771,3475.0,3474.4,5.87819]
[1721632296929,2.87779,3474.9,3474.4,3.0]
[1721632297088,2.87779,3474.9,3474.3,0.87567]
[1721632297089,3.00175,3475.0,3474.3,6.75392]
[1721632297293,3.0017,3475.0,3474.4,2.87817]
[1721632297708,2.87779,3474.9,3474.3,3.87567]
[1721632298631,2.87792,3474.8,3474.3,3.87567]
[1721632298805,2.87792,3474.8,3474.1,2.87843]
[1721632299000,2.87794,3474.7,3474.2,3.0]
[1721632299909,2.2884,3474.7,3474.2,3.0]
[1721632300132,2.2884,3474.7,3474.2,2.87829]
[1721632300333,2.2884,3474.7,3474.3,5.87827]
[1721632300507,2.2884,3474.7,3474.3,6.753947]
[1721632301040,2.2884,3474.7,3474.4,2.87812]
[1721632301214,2.2884,3474.7,3474.5,3.0]
[1721632301398,2.2884,3474.7,3474.3,6.753947]
[1721632301602,2.2884,3474.7,3474.3,3.875677]
[1721632301842,2.2884,3474.7,3474.3,0.875677]
[1721632303303,5.16636,3474.7,3474.2,3.0]
[1721632303638,2.34591903,3474.7,3474.1,3.0]
[1721632303862,2.87803,3474.6,3474.0,3.0]
[1721632304056,2.87812,3474.5,3474.0,3.0]
[1721632304208,2.87812,3474.5,3473.8,3.0]
[1721632304404,2.8782,3474.4,3473.8,3.875767]
[1721632305346,2.8782,3474.4,3473.8,6.754437]
[1721632305524,2.87811,3474.5,3473.8,6.754437]
[1721632306040,2.388,3474.2,3473.5,2.87891]
[1721632306249,2.388,3474.2,3473.4,2.87899]
[1721632306741,2.388,3474.2,3473.6,2.87884]
[1721632307444,2.388,3474.2,3473.7,3.0]
[1721632308203,2.388,3474.2,3473.5,3.0]
[1721632308409,2.388,3474.2,3473.5,6.813438]
[1721632308636,5.26642,3474.2,3473.5,6.813438]
[1721632309529,2.388,3474.2,3473.5,6.813378]
[1721632309734,5.26641,3474.2,3473.5,6.813378]
[1721632309910,2.87844,3474.1,3473.5,3.934508]
[1721632310111,2.87844,3474.1,3473.4,2.87901]
[1721632310432,2.87844,3474.1,3473.5,5.87893]
[1721632312328,2.87844,3474.1,3473.5,3.0]
[1721632312535,2.98340239,3474.2,3473.4,3.0]
[1721632312536,2.87854,3474.0,3473.4,3.0]
[1721632313741,2.87854,3474.0,3473.4,3.875831]
[1721632313945,0.59540239,3474.2,3473.4,3.0]
[1721632314164,2.2771,3473.1,3472.3,1.2432742]
[1721632314372,2.87942,3473.0,3472.2,2.88001]
[1721632314653,2.87283444,3473.1,3472.5,2.87976]
[1721632314868,2.2771,3473.1,3472.5,2.87976]
[1721632315368,5.76481444,3473.4,3472.7,2.87958]
[1721632315528,5.16908,3473.4,3472.7,2.87958]
[1721632316547,5.16908,3473.4,3472.5,3.455719]
[1721632316756,5.16908,3473.4,3472.6,2.87967]
[1721632317313,2.29,3473.4,3472.7,0.05758683]
[1721632317553,0.89310358,3473.8,3472.7,0.05758683]
[1721632317554,2.87871,3473.8,3473.1,2.87919]
[1721632317711,2.3155,3473.9,3473.2,2.93674914]
[1721632317915,5.19415,3473.9,3473.2,2.87917]
[1721632318361,2.87881,3473.7,3472.9,2.8794]
[1721632318576,2.87869,3473.8,3472.9,3.53989056]
[1721632318855,5.15966,3473.3,3472.5,3.0]
[1721632319028,5.15966,3473.3,3472.6,2.87968]
[1721632321447,5.15966,3473.3,3472.4,5.87983]
[1721632321834,5.15966,3473.3,3472.6,2.87966]
[1721632322034,5.15966,3473.3,3472.6,3.755618]
[1721632322664,2.2805,3473.3,3472.7,2.87958]
[1721632323238,5.15961,3473.3,3472.6,0.875958]
[1721632323676,5.15961,3473.3,3472.7,2.87959]
[1721632323677,2.2805,3473.3,3472.7,2.87959]
[1721632324645,5.15961,3473.3,3472.7,2.87959]
[1721632324860,2.2805,3473.3,3472.8,3.8050548]
[1721632325062,2.2805,3473.3,3473.0,2.87934]
[1721632325368,2.8787,3473.8,3473.1,2.87926]
[1721632325369,2.4337,3473.7,3473.1,2.87926]
[1721632326482,5.31248,3473.7,3472.9,2.87942]
[1721632326659,2.87885,3473.6,3472.9,3.63547228]
[1721632327635,2.87885,3473.6,3472.9,0.75605228]
[1721632328064,2.87885,3473.6,3472.8,0.55]
[1721632328267,2.87885,3473.6,3472.9,2.87943]
[1721632328670,2.87895,3473.5,3472.9,2.87943]
[1721632328866,2.87911,3473.3,3472.5,2.87975]
[1721632329141,3.47424444,3474.1,3472.5,2.87972]
[1721632329142,5.22099,3473.2,3472.5,2.87972]
[1721632329342,2.3418,3473.2,3472.6,0.875963]
[1721632329667,2.3418,3473.2,3472.6,3.755623]
[1721632330374,5.22098,3473.2,3472.6,3.755623]
[1721632330742,5.22098,3473.2,3472.6,0.875963]
[1721632330969,2.3418,3473.2,3472.6,2.87962]
[1721632331153,2.3418,3473.2,3472.5,2.87975]
[1721632331642,2.3418,3473.2,3472.6,2.87963]
[1721632332479,2.3418,3473.2,3472.6,2.87962]
[1721632332682,2.3418,3473.2,3472.7,3.0]
[1721632333055,2.3418,3473.2,3472.7,5.8796]
[1721632333256,2.3418,3473.2,3472.7,6.755543]
[1721632334546,2.3418,3473.2,3472.7,3.875943]
[1721632335539,2.3418,3473.2,3472.7,6.755523]
[1721632335743,2.3154,3473.6,3473.0,2.87933]